[Event "7° Rencontres Internationales des Echecs Francophones"]
[Site "PARIS, France"]
[Date "2019.08.10"]
[Round "7.7"]
[White "Chabanon, Jean-Luc"]
[Black "Dardha, Daniel"]
[Result "0-1"]
[TimeControl "90'+30' + 30seconds/move"]
[WhiteElo "2448"]
[BlackElo "2390"]

1. d4 {[%clk 00:05:05]} Nf6 {[%clk 00:05:05]} {[%emt 00:00:02]} 2. c4 {[%clk
00:05:06]} {[%emt 00:00:02]} c5 {[%clk 00:05:07]} 3. d5 {[%clk 00:05:08]}
{[%emt 00:00:02]} e6 {[%clk 00:05:09]} 4. Nc3 {[%clk 00:05:07]} exd5 {[%clk
00:05:11]} {[%emt 00:00:05]} 5. cxd5 {[%emt 00:00:04]} d6 6. Nf3 {[%clk
00:05:05]} {[%emt 00:00:04]} g6 {[%clk 00:05:15]} {[%emt 00:00:02]} 7. Bf4
{[%clk 00:04:56]} {[%emt 00:00:11]} a6 {[%clk 00:05:17]} 8. a4 {[%clk
00:04:33]} {[%emt 00:00:28]} Bg7 {[%clk 00:05:19]} 9. h3 {[%clk 00:04:32]}
{[%emt 00:00:03]} O-O {[%clk 00:05:20]} {[%emt 00:00:02]} 10. e3 {[%clk
00:04:33]} {[%emt 00:00:02]} Nh5 {[%clk 00:05:21]} {[%emt 00:00:01]} 11. Bh2
{[%clk 00:04:35]} {[%emt 00:00:02]} f5 {[%clk 00:05:22]} {[%emt 00:00:02]} 12.
Nd2 {[%clk 00:04:23]} {[%emt 00:00:14]} f4 {[%clk 00:05:21]} {[%emt 00:00:04]}
13. e4 {[%clk 00:03:58]} {[%emt 00:00:29]} Nd7 {[%clk 00:03:38]} {[%emt
00:01:46]} 14. Be2 {[%clk 00:03:44]} {[%emt 00:00:16]} Ne5 {[%clk 00:03:30]}
{[%emt 00:00:11]} 15. Nf3 {[%clk 00:03:18]} {[%emt 00:00:29]} Nxf3+ {[%clk
00:03:15]} {[%emt 00:00:18]} 16. Bxf3 {[%clk 00:03:19]} {[%emt 00:00:02]} Qg5
{[%clk 00:03:17]} 17. Qd2 {[%clk 00:01:19]} {[%emt 00:02:04]} Be5 {[%clk
00:02:50]} {[%emt 00:00:29]} 18. g4 {[%clk 00:00:56]} {[%emt 00:00:27]} Ng7
{[%clk 00:02:15]} {[%emt 00:00:37]} 19. Ne2 {[%clk 00:00:25]} {[%emt 00:00:34]}
Bd7 {[%clk 00:01:57]} {[%emt 00:00:22]} 20. Ra2 {[%clk 00:00:11]} {[%emt
00:00:17]} b5 {[%clk 00:01:50]} {[%emt 00:00:10]} 21. axb5 {[%clk 00:00:10]}
{[%emt 00:00:04]} axb5 {[%clk 00:01:52]} 22. Rxa8 {[%clk 00:00:10]} {[%emt
00:00:03]} Rxa8 {[%clk 00:01:54]} 23. O-O {[%clk 00:00:10]} {[%emt 00:00:03]}
h5 {[%clk 00:01:41]} {[%emt 00:00:16]} 24. Bxf4 {[%clk 00:00:11]} {[%emt
00:00:02]} Bxf4 {[%clk 00:01:42]} {[%emt 00:00:02]} 25. Qxf4 {[%clk 00:00:10]}
{[%emt 00:00:04]} Qxf4 {[%clk 00:01:43]} {[%emt 00:00:02]} 26. Nxf4 {[%clk
00:00:12]} {[%emt 00:00:02]} Rf8 {[%clk 00:01:45]} 27. Nxg6 {[%clk 00:00:07]}
{[%emt 00:00:08]} Rxf3 {[%clk 00:01:46]} {[%emt 00:00:02]} 28. e5 {[%clk
00:00:06]} {[%emt 00:00:05]} Be8 {[%clk 00:01:27]} {[%emt 00:00:22]} 29. Ne7+
{[%clk 00:00:08]} Kf8 {[%clk 00:01:21]} {[%emt 00:00:09]} 30. exd6 {[%clk
00:00:10]} Rf6 {[%clk 00:01:23]} 31. Nc8 {[%clk 00:00:08]} {[%emt 00:00:05]}
hxg4 {[%clk 00:01:17]} {[%emt 00:00:09]} 32. hxg4 {[%clk 00:00:11]} {[%emt
00:00:01]} Bd7 {[%clk 00:01:19]} {[%emt 00:00:02]} 33. Nb6 {[%clk 00:00:12]}
Bxg4 {[%clk 00:00:55]} {[%emt 00:00:27]} 34. Rc1 {[%clk 00:00:09]} {[%emt
00:00:06]} Rxd6 {[%clk 00:00:53]} {[%emt 00:00:04]} 35. Na8 {[%clk 00:00:11]}
{[%emt 00:00:02]} Rxd5 {[%clk 00:00:35]} {[%emt 00:00:21]} 36. Nc7 {[%clk
00:00:12]} {[%emt 00:00:02]} Rg5 {[%clk 00:00:37]} 37. Kh2 {[%clk 00:00:13]}
{[%emt 00:00:03]} b4 {[%clk 00:00:31]} {[%emt 00:00:08]} 38. Kg3 {[%clk
00:00:13]} {[%emt 00:00:03]} Bh5+ {[%clk 00:00:28]} {[%emt 00:00:05]} 39. Kh4
{[%clk 00:00:12]} {[%emt 00:00:03]} Rg4+ {[%clk 00:00:26]} {[%emt 00:00:07]} 40.
Kh3 {[%clk 00:00:14]} Rg5 {[%clk 00:00:12]} {[%emt 00:00:17]} 41. Kh4 {[%clk
00:00:16]} Rf5 {[%clk 00:00:12]} {[%emt 00:00:03]} 42. Na6 {[%clk 00:00:14]}
{[%emt 00:00:05]} Rxf2 {[%clk 00:00:09]} {[%emt 00:00:05]} 43. Nxc5 {[%clk
00:00:16]} {[%emt 00:00:02]} Rxb2 {[%clk 00:00:09]} {[%emt 00:00:03]} 44. Rf1+
{[%clk 00:00:15]} {[%emt 00:00:03]} Bf7 {[%clk 00:00:08]} {[%emt 00:00:05]} 45.
Nd7+ {[%clk 00:00:15]} {[%emt 00:00:03]} Ke7 {[%clk 00:00:09]} {[%emt
00:00:01]} 46. Ne5 {[%clk 00:00:16]} {[%emt 00:00:03]} Be6 {[%clk 00:00:08]}
{[%emt 00:00:03]} 47. Rf4 {[%clk 00:00:15]} {[%emt 00:00:04]} Nf5+ {[%clk
00:00:08]} {[%emt 00:00:03]} 48. Kg5 {[%clk 00:00:12]} {[%emt 00:00:07]} b3
{[%clk 00:00:10]} 49. Ng6+ {[%clk 00:00:14]} {[%emt 00:00:01]} Kd6 {[%clk
00:00:12]} {[%emt 00:00:02]} 50. Rb4 {[%clk 00:00:15]} {[%emt 00:00:02]} Kc5
{[%clk 00:00:10]} {[%emt 00:00:04]} 51. Rb8 {[%clk 00:00:16]} {[%emt 00:00:02]}
Nd6 {[%clk 00:00:10]} {[%emt 00:00:03]} 52. Nf4 {[%clk 00:00:17]} {[%emt
00:00:03]} Bc4 {[%clk 00:00:10]} {[%emt 00:00:02]} 53. Kf6 {[%clk 00:00:13]}
{[%emt 00:00:07]} Nb5 {[%clk 00:00:10]} {[%emt 00:00:03]} 54. Rc8+ {[%clk
00:00:13]} {[%emt 00:00:03]} Kb4 {[%clk 00:00:11]} {[%emt 00:00:02]} 55. Ke5
{[%clk 00:00:12]} {[%emt 00:00:04]} Rd2 {[%clk 00:00:08]} {[%emt 00:00:06]} 56.
Rh8 {[%clk 00:00:09]} {[%emt 00:00:06]} b2 {[%clk 00:00:09]} {[%emt 00:00:02]}
57. Rh1 {[%clk 00:00:10]} Nc3 {[%clk 00:00:10]} {[%emt 00:00:02]} 0-1

[Event "7° Rencontres Internationales des Echecs Francophones"]
[Site "PARIS, France"]
[Date "2019.08.10"]
[Round "7.4"]
[White "Hamdouchi, Hicham"]
[Black "Shchekachev, Andrei"]
[Result "0-1"]
[TimeControl "90'+30' + 30seconds/move"]
[WhiteElo "2514"]
[BlackElo "2446"]

1. e4 {[%clk 00:05:04]} Nc6 {[%clk 00:05:05]} {[%emt 00:00:01]} 2. Nf3 {[%clk
00:05:05]} {[%emt 00:00:02]} d6 {[%clk 00:05:07]} {[%emt 00:00:02]} 3. d4
{[%clk 00:04:57]} {[%emt 00:00:11]} Nf6 {[%clk 00:05:08]} {[%emt 00:00:02]} 4.
Nc3 {[%clk 00:04:55]} {[%emt 00:00:06]} g6 {[%clk 00:05:10]} 5. Bb5 {[%clk
00:04:17]} {[%emt 00:00:41]} a6 {[%clk 00:05:10]} {[%emt 00:00:02]} 6. Bxc6+
{[%clk 00:03:42]} {[%emt 00:00:39]} bxc6 {[%clk 00:05:11]} 7. Bf4 {[%clk
00:03:42]} {[%emt 00:00:05]} Bg7 {[%clk 00:04:49]} {[%emt 00:00:25]} 8. O-O
{[%clk 00:03:32]} {[%emt 00:00:13]} O-O {[%clk 00:04:44]} {[%emt 00:00:08]} 9.
h3 {[%clk 00:03:30]} {[%emt 00:00:05]} Nd7 {[%clk 00:04:35]} {[%emt 00:00:12]}
10. Qd2 {[%clk 00:03:31]} {[%emt 00:00:02]} Re8 {[%clk 00:04:32]} {[%emt
00:00:05]} 11. Rad1 {[%clk 00:03:21]} {[%emt 00:00:14]} Bb7 {[%clk 00:03:57]}
{[%emt 00:00:39]} 12. Rfe1 {[%clk 00:03:22]} {[%emt 00:00:01]} c5 {[%clk
00:03:51]} {[%emt 00:00:09]} 13. Bh6 {[%clk 00:02:47]} {[%emt 00:00:38]} cxd4
{[%clk 00:03:15]} {[%emt 00:00:39]} 14. Bxg7 {[%clk 00:02:41]} {[%emt
00:00:09]} Kxg7 {[%clk 00:03:17]} {[%emt 00:00:02]} 15. Qxd4+ {[%clk 00:02:29]}
{[%emt 00:00:14]} e5 {[%clk 00:03:18]} {[%emt 00:00:01]} 16. Qe3 {[%clk
00:02:19]} {[%emt 00:00:14]} Nc5 {[%clk 00:03:09]} {[%emt 00:00:11]} 17. Nh2
{[%clk 00:01:41]} {[%emt 00:00:41]} Ne6 {[%clk 00:03:00]} {[%emt 00:00:13]} 18.
Nd5 {[%clk 00:01:31]} {[%emt 00:00:13]} Bxd5 {[%clk 00:02:35]} {[%emt
00:00:28]} 19. exd5 {[%clk 00:01:31]} {[%emt 00:00:03]} Nf4 {[%clk 00:02:36]}
{[%emt 00:00:02]} 20. Nf3 {[%clk 00:01:19]} {[%emt 00:00:15]} Qb8 {[%clk
00:02:09]} {[%emt 00:00:30]} 21. g3 {[%clk 00:01:08]} {[%emt 00:00:14]} Nh5
{[%clk 00:02:11]} 22. b3 {[%emt 00:00:21]} Nf6 23. Ng5 {[%clk 00:00:47]} {[%emt
00:00:14]} h6 {[%clk 00:01:36]} {[%emt 00:00:34]} 24. Ne4 {[%clk 00:00:44]}
{[%emt 00:00:06]} Nxe4 {[%clk 00:01:31]} {[%emt 00:00:09]} 25. Qxe4 {[%clk
00:00:45]} {[%emt 00:00:01]} a5 {[%clk 00:01:25]} {[%emt 00:00:09]} 26. a4
{[%clk 00:00:46]} {[%emt 00:00:02]} f5 {[%clk 00:01:11]} {[%emt 00:00:17]} 27.
Qc4 {[%clk 00:00:49]} {[%emt 00:00:01]} Qb6 {[%clk 00:01:10]} {[%emt 00:00:04]}
28. Kg2 {[%clk 00:00:47]} {[%emt 00:00:04]} Re7 {[%clk 00:01:08]} {[%emt
00:00:05]} 29. Qc3 {[%clk 00:00:46]} {[%emt 00:00:05]} Rae8 {[%clk 00:01:05]}
{[%emt 00:00:05]} 30. Re3 {[%clk 00:00:38]} {[%emt 00:00:11]} Kf7 {[%clk
00:01:02]} {[%emt 00:00:05]} 31. Qd2 {[%clk 00:00:39]} {[%emt 00:00:04]} g5
{[%clk 00:01:01]} {[%emt 00:00:03]} 32. Rc3 {[%clk 00:00:37]} {[%emt 00:00:06]}
Qb4 {[%clk 00:00:42]} {[%emt 00:00:22]} 33. Rc6 {[%clk 00:00:38]} {[%emt
00:00:01]} Qxd2 {[%clk 00:00:36]} {[%emt 00:00:09]} 34. Rxd2 {[%clk 00:00:40]}
{[%emt 00:00:01]} Ra8 {[%clk 00:00:39]} 35. Rd3 {[%clk 00:00:36]} {[%emt
00:00:07]} e4 {[%clk 00:00:35]} {[%emt 00:00:06]} 36. Rdc3 {[%clk 00:00:32]}
{[%emt 00:00:08]} Ra7 {[%clk 00:00:37]} {[%emt 00:00:02]} 37. R3c4 {[%clk
00:00:33]} Kf6 {[%clk 00:00:37]} {[%emt 00:00:03]} 38. Kf1 {[%clk 00:00:32]}
{[%emt 00:00:04]} Ke5 {[%clk 00:00:38]} {[%emt 00:00:02]} 39. Ke2 {[%clk
00:00:09]} {[%emt 00:00:26]} Kxd5 {[%clk 00:00:39]} {[%emt 00:00:02]} 40. Ke3
{[%clk 00:00:11]} Ke6 {[%clk 00:00:26]} {[%emt 00:00:17]} 41. g4 {[%clk
00:00:12]} {[%emt 00:00:02]} Ke5 {[%clk 00:00:23]} {[%emt 00:00:07]} 42. gxf5
{[%clk 00:00:12]} {[%emt 00:00:03]} Kxf5 {[%clk 00:00:25]} 43. Rd4 {[%clk
00:00:12]} {[%emt 00:00:02]} Re5 {[%clk 00:00:21]} {[%emt 00:00:08]} 44. Rcc4
{[%clk 00:00:12]} {[%emt 00:00:03]} d5 {[%clk 00:00:20]} {[%emt 00:00:04]} 45.
Rc6 {[%clk 00:00:14]} Ra8 {[%clk 00:00:19]} {[%emt 00:00:04]} 46. Rxc7 {[%clk
00:00:13]} {[%emt 00:00:04]} Rf8 {[%clk 00:00:21]} {[%emt 00:00:02]} 47. Rc5
{[%clk 00:00:14]} {[%emt 00:00:02]} Ke6 {[%clk 00:00:22]} {[%emt 00:00:01]} 48.
Rc6+ {[%clk 00:00:14]} {[%emt 00:00:02]} Kd7 {[%clk 00:00:23]} {[%emt
00:00:02]} 49. Rxh6 {[%clk 00:00:16]} {[%emt 00:00:02]} Rf3+ {[%clk 00:00:22]}
{[%emt 00:00:05]} 50. Ke2 {[%clk 00:00:17]} {[%emt 00:00:01]} Ref5 {[%clk
00:00:24]} 51. Ke1 {[%clk 00:00:15]} {[%emt 00:00:05]} Rc3 {[%clk 00:00:23]}
{[%emt 00:00:04]} 52. Kd2 {[%clk 00:00:16]} {[%emt 00:00:02]} Rcf3 {[%clk
00:00:24]} {[%emt 00:00:02]} 53. Ke1 {[%clk 00:00:18]} {[%emt 00:00:01]} Rc3
{[%clk 00:00:26]} 54. Kd2 {[%clk 00:00:20]} Rc5 {[%clk 00:00:27]} {[%emt
00:00:02]} 55. c4 {[%clk 00:00:12]} {[%emt 00:00:11]} Rxf2+ {[%clk 00:00:27]}
{[%emt 00:00:02]} 56. Ke1 {[%clk 00:00:14]} {[%emt 00:00:02]} Rb2 {[%clk
00:00:28]} {[%emt 00:00:02]} 57. Rxd5+ {[%clk 00:00:15]} {[%emt 00:00:02]} Rxd5
{[%clk 00:00:30]} {[%emt 00:00:01]} 58. cxd5 {[%clk 00:00:17]} Rxb3 {[%clk
00:00:32]} 59. Ra6 {[%clk 00:00:18]} {[%emt 00:00:02]} Rxh3 {[%clk 00:00:32]}
{[%emt 00:00:03]} 60. Rxa5 {[%clk 00:00:20]} Kd6 {[%clk 00:00:35]} 61. Ke2
{[%clk 00:00:21]} {[%emt 00:00:03]} Ra3 {[%clk 00:00:31]} {[%emt 00:00:07]} 62.
Ra6+ {[%clk 00:00:19]} {[%emt 00:00:06]} Kxd5 {[%clk 00:00:32]} {[%emt
00:00:01]} 63. Rg6 {[%clk 00:00:21]} Kd4 {[%clk 00:00:30]} {[%emt 00:00:06]} 64.
Rxg5 {[%clk 00:00:17]} {[%emt 00:00:06]} Ra2+ {[%clk 00:00:32]} 65. Ke1 {[%clk
00:00:17]} {[%emt 00:00:03]} Kd3 {[%clk 00:00:32]} {[%emt 00:00:03]} 66. a5
{[%clk 00:00:12]} {[%emt 00:00:09]} Ra1+ {[%clk 00:00:31]} {[%emt 00:00:03]} 67.
Kf2 {[%clk 00:00:14]} {[%emt 00:00:01]} e3+ {[%clk 00:00:33]} {[%emt 00:00:01]}
68. Kf3 {[%clk 00:00:15]} {[%emt 00:00:02]} Rf1 {[%clk 00:00:33]} {[%emt
00:00:03]} 69. Kg2 {[%clk 00:00:17]} e2 {[%clk 00:00:34]} {[%emt 00:00:03]} 0-1



[ePGN "0.1;DGT LiveChess/2.2.4"]

[Event "7° Rencontres Internationales des Echecs Francophones"]
[Site "PARIS, France"]
[Date "2019.08.10"]
[Round "8.6"]
[White "Bouget, Alexandre"]
[Black "Sochacki, Christophe"]
[Result "0-1"]
[TimeControl "90'+30' + 30seconds/move"]
[WhiteElo "2203"]
[BlackElo "2443"]

1. d4 {[%clk 00:05:05]} {[%emt 00:00:55]} Nc6 {[%clk 00:05:05]} 2. Nf3 {[%clk
00:05:05]} {[%emt 00:00:04]} d6 {[%clk 00:05:08]} {[%emt 00:00:01]} 3. c4
{[%clk 00:05:03]} {[%emt 00:00:05]} e5 {[%clk 00:05:09]} 4. d5 {[%clk
00:04:53]} {[%emt 00:00:16]} Nce7 {[%clk 00:05:11]} 5. Nc3 {[%clk 00:04:52]}
{[%emt 00:00:03]} g6 {[%clk 00:05:10]} {[%emt 00:00:05]} 6. h4 {[%clk
00:04:51]} {[%emt 00:00:03]} h6 {[%clk 00:04:46]} {[%emt 00:00:27]} 7. h5
{[%clk 00:04:24]} {[%emt 00:00:31]} g5 {[%clk 00:04:48]} 8. e4 {[%clk
00:04:24]} {[%emt 00:00:02]} Bg7 {[%clk 00:04:14]} {[%emt 00:00:38]} 9. Nd2
{[%clk 00:03:20]} {[%emt 00:01:06]} Nf6 {[%clk 00:03:06]} {[%emt 00:01:11]} 10.
f3 {[%clk 00:03:15]} {[%emt 00:00:08]} g4 {[%clk 00:03:07]} {[%emt 00:00:02]}
11. Be2 {[%clk 00:03:10]} {[%emt 00:00:08]} c6 {[%clk 00:02:52]} {[%emt
00:00:19]} 12. fxg4 {[%clk 00:02:58]} {[%emt 00:00:15]} Qb6 {[%clk 00:02:50]}
{[%emt 00:00:05]} 13. Nf1 {[%clk 00:02:46]} {[%emt 00:00:14]} cxd5 {[%clk
00:02:47]} {[%emt 00:00:07]} 14. cxd5 {[%clk 00:02:40]} {[%emt 00:00:08]} Bd7
{[%clk 00:02:33]} {[%emt 00:00:18]} 15. Ne3 {[%clk 00:02:12]} {[%emt 00:00:30]}
Qd4 {[%clk 00:01:46]} {[%emt 00:00:50]} 16. Nc4 {[%clk 00:01:42]} {[%emt
00:00:34]} O-O {[%clk 00:01:28]} {[%emt 00:00:20]} 17. Be3 {[%clk 00:00:53]}
{[%emt 00:00:52]} Qxd1+ {[%clk 00:01:30]} {[%emt 00:00:01]} 18. Rxd1 {[%clk
00:00:55]} Nxg4 {[%clk 00:01:32]} {[%emt 00:00:02]} 19. Bxg4 {[%clk 00:00:42]}
{[%emt 00:00:15]} Bxg4 {[%clk 00:01:34]} {[%emt 00:00:01]} 20. Rd2 {[%clk
00:00:37]} {[%emt 00:00:09]} Rfd8 {[%clk 00:01:27]} {[%emt 00:00:09]} 21. Rh4
{[%clk 00:00:32]} {[%emt 00:00:07]} f5 {[%clk 00:01:23]} {[%emt 00:00:07]} 22.
Nb5 {[%clk 00:00:29]} {[%emt 00:00:06]} Bf6 {[%clk 00:01:11]} {[%emt 00:00:15]}
23. Rh2 {[%clk 00:00:31]} f4 {[%clk 00:01:12]} {[%emt 00:00:03]} 24. Bf2 {[%clk
00:00:33]} Rac8 {[%clk 00:01:09]} {[%emt 00:00:06]} 25. Bh4 {[%clk 00:00:13]}
{[%emt 00:00:23]} Bxh4+ {[%clk 00:00:41]} {[%emt 00:00:31]} 26. Rxh4 {[%clk
00:00:15]} Rxc4 {[%clk 00:00:43]} 27. Rxg4+ {[%clk 00:00:17]} Kf7 {[%clk
00:00:45]} 28. Re2 {[%clk 00:00:13]} {[%emt 00:00:08]} a6 {[%clk 00:00:42]}
{[%emt 00:00:06]} 29. Nc3 {[%clk 00:00:15]} b5 {[%clk 00:00:43]} {[%emt
00:00:01]} 30. a3 {[%clk 00:00:17]} {[%emt 00:00:02]} Rg8 {[%clk 00:00:36]}
{[%emt 00:00:10]} 31. Rxg8 {[%clk 00:00:17]} {[%emt 00:00:03]} Nxg8 {[%clk
00:00:38]} 32. g3 {[%clk 00:00:14]} {[%emt 00:00:06]} fxg3 {[%clk 00:00:31]}
{[%emt 00:00:09]} 33. Rg2 {[%clk 00:00:14]} {[%emt 00:00:03]} Nf6 {[%clk
00:00:34]} 34. Rxg3 {[%clk 00:00:14]} {[%emt 00:00:03]} Nxe4 {[%clk 00:00:21]}
{[%emt 00:00:16]} 35. Rg6 {[%clk 00:00:06]} {[%emt 00:00:11]} Nf6 {[%clk
00:00:09]} {[%emt 00:00:15]} 36. Rxh6 {[%clk 00:00:07]} {[%emt 00:00:05]} Rh4
{[%clk 00:00:09]} 37. Kd2 {[%clk 00:00:07]} {[%emt 00:00:02]} Rh2+ {[%clk
00:00:09]} {[%emt 00:00:03]} 38. Kc1 {[%clk 00:00:09]} {[%emt 00:00:02]} e4
{[%clk 00:00:10]} {[%emt 00:00:01]} 39. Rg6 {[%clk 00:00:07]} {[%emt 00:00:06]}
Rxh5 {[%clk 00:00:11]} {[%emt 00:00:01]} 40. Rg2 {[%clk 00:00:07]} {[%emt
00:00:03]} Re5 {[%clk 00:00:11]} {[%emt 00:00:03]} 41. Rf2 {[%clk 00:00:08]}
{[%emt 00:00:02]} Kg6 {[%clk 00:00:13]} {[%emt 00:00:01]} 42. Rg2+ {[%clk
00:00:09]} {[%emt 00:00:02]} Kf5 {[%clk 00:00:13]} {[%emt 00:00:03]} 43. Rf2+
{[%clk 00:00:11]} {[%emt 00:00:02]} Kg5 {[%clk 00:00:15]} 44. Re2 {[%clk
00:00:08]} {[%emt 00:00:05]} e3 {[%clk 00:00:13]} {[%emt 00:00:05]} 45. Kc2
{[%clk 00:00:09]} {[%emt 00:00:03]} Kf4 {[%clk 00:00:14]} {[%emt 00:00:01]} 46.
Re1 {[%clk 00:00:10]} {[%emt 00:00:03]} Nxd5 {[%clk 00:00:13]} {[%emt
00:00:04]} 47. Rf1+ {[%clk 00:00:07]} {[%emt 00:00:05]} Kg4 {[%clk 00:00:13]}
{[%emt 00:00:04]} 48. Re1 {[%clk 00:00:00]} {[%emt 00:00:05]} 0-1

[Event "7° Rencontres Internationales des Echecs Francophones"]
[Site "PARIS, France"]
[Date "2019.08.10"]
[Round "8.10"]
[White "Saglier, Paul"]
[Black "Aloma Vidal, Robert"]
[Result "0-1"]
[TimeControl "90'+30' + 30seconds/move"]
[WhiteElo "2194"]
[BlackElo "2417"]

1. e4 {[%clk 00:05:03]} {[%emt 00:00:02]} c6 {[%clk 00:05:06]} 2. Nf3 {[%clk
00:05:01]} {[%emt 00:00:07]} d5 {[%clk 00:05:08]} {[%emt 00:00:01]} 3. d3
{[%clk 00:05:03]} g6 {[%clk 00:04:52]} {[%emt 00:00:18]} 4. Nc3 {[%clk
00:05:00]} {[%emt 00:00:06]} Bg7 {[%clk 00:04:55]} {[%emt 00:00:01]} 5. Be2
{[%clk 00:04:55]} {[%emt 00:00:07]} e5 {[%clk 00:04:57]} {[%emt 00:00:02]} 6.
O-O {[%clk 00:04:54]} {[%emt 00:00:04]} Ne7 {[%clk 00:04:58]} {[%emt 00:00:02]}
7. a4 {[%clk 00:04:36]} {[%emt 00:00:21]} O-O {[%clk 00:04:56]} {[%emt
00:00:06]} 8. a5 {[%clk 00:04:35]} {[%emt 00:00:04]} h6 {[%clk 00:04:55]}
{[%emt 00:00:04]} 9. Re1 {[%clk 00:04:28]} {[%emt 00:00:09]} f5 {[%clk
00:04:55]} {[%emt 00:00:04]} 10. exd5 {[%clk 00:03:55]} {[%emt 00:00:36]} cxd5
{[%clk 00:04:56]} {[%emt 00:00:05]} 11. a6 {[%clk 00:03:16]} {[%emt 00:00:39]}
Nxa6 {[%clk 00:04:16]} {[%emt 00:00:43]} 12. d4 {[%clk 00:03:18]} e4 {[%clk
00:04:18]} 13. Ne5 {[%clk 00:03:18]} {[%emt 00:00:03]} Nc7 {[%clk 00:04:12]}
{[%emt 00:00:11]} 14. b3 {[%clk 00:03:06]} {[%emt 00:00:14]} f4 {[%clk
00:04:12]} {[%emt 00:00:03]} 15. Ba3 {[%clk 00:03:06]} {[%emt 00:00:03]} Rf5
{[%clk 00:03:30]} {[%emt 00:00:44]} 16. Bg4 {[%clk 00:02:30]} {[%emt 00:00:39]}
Rg5 {[%clk 00:03:09]} {[%emt 00:00:25]} 17. Bxc8 {[%clk 00:01:22]} {[%emt
00:01:11]} Rxc8 {[%clk 00:03:01]} {[%emt 00:00:11]} 18. Qd2 {[%clk 00:01:04]}
{[%emt 00:00:21]} f3 {[%clk 00:02:42]} {[%emt 00:00:21]} 19. g3 {[%clk
00:01:00]} {[%emt 00:00:07]} Nf5 {[%clk 00:02:43]} {[%emt 00:00:03]} 20. Rad1
{[%clk 00:00:45]} {[%emt 00:00:18]} Nxd4 {[%clk 00:02:34]} {[%emt 00:00:13]} 21.
Qxd4 {[%clk 00:00:27]} {[%emt 00:00:20]} Bxe5 {[%clk 00:02:26]} {[%emt
00:00:11]} 22. Qe3 {[%clk 00:00:29]} {[%emt 00:00:02]} Bxc3 {[%clk 00:02:18]}
{[%emt 00:00:10]} 23. Qxc3 {[%clk 00:00:30]} {[%emt 00:00:02]} Nb5 {[%clk
00:02:20]} 24. Qb4 {[%clk 00:00:27]} {[%emt 00:00:06]} Nxa3 {[%clk 00:02:01]}
{[%emt 00:00:22]} 25. Qxa3 {[%clk 00:00:30]} Qd7 {[%clk 00:01:57]} {[%emt
00:00:07]} 26. Kh1 {[%clk 00:00:06]} {[%emt 00:00:26]} Qh3 {[%clk 00:01:58]}
{[%emt 00:00:02]} 0-1